bitfinex/quotes_BTCUSD_20241101
["timestamp","ask_amount","ask_price","bid_price","bid_amount"]
[1730479288007,0.242525,70163.0,70157.0,0.079]
[1730479288231,0.29653025,70163.0,70157.0,0.079]
[1730479288450,0.242535,70158.0,70157.0,0.079]
[1730479288671,0.27695646,70158.0,70157.0,0.079]
[1730479288877,0.27695646,70158.0,70157.0,0.1731]
[1730479289503,0.03442146,70158.0,70157.0,0.1731]
[1730479289727,0.03442146,70158.0,70157.0,0.315637]
[1730479289728,0.01323902,70158.0,70157.0,0.315637]
[1730479291194,0.01323902,70158.0,70157.0,0.1731]
[1730479291646,0.18795646,70158.0,70157.0,0.1731]
[1730479291899,0.196946,70158.0,70157.0,0.1731]
[1730479292126,0.196946,70158.0,70148.0,0.000822]
[1730479292127,0.1,70156.0,70149.0,0.0763]
[1730479292351,0.142551,70150.0,70149.0,0.0763]
[1730479292565,0.142551,70150.0,70148.0,0.094922]
[1730479292566,0.142553,70149.0,70148.0,0.000822]
[1730479292771,0.5963999,70149.0,70148.0,0.000822]
[1730479293240,0.5963999,70149.0,70145.0,6.6e-07]
[1730479293241,0.142559,70146.0,70145.0,6.6e-07]
[1730479293463,0.4349286,70146.0,70145.0,6.6e-07]
[1730479294567,0.4579286,70146.0,70145.0,6.6e-07]
[1730479294801,0.58809741,70146.0,70145.0,6.6e-07]
[1730479295247,1.03270331,70146.0,70145.0,6.6e-07]
[1730479295501,1.03270331,70146.0,70129.0,0.078206]
[1730479295502,0.142592,70130.0,70129.0,0.000806]
[1730479295727,5.50289472,70130.0,70129.0,0.21369577]
[1730479295943,5.50289472,70130.0,70119.0,0.21369577]
[1730479295944,0.242612,70120.0,70119.0,0.11282613]
[1730479296189,0.242612,70120.0,70119.0,0.000806]
[1730479296190,0.68417033,70120.0,70119.0,0.000806]
[1730479296413,0.242628,70112.0,70111.0,0.11386439]
[1730479296642,0.242628,70112.0,70111.0,0.000806]
[1730479296643,0.43496743,70112.0,70111.0,0.000806]
[1730479296877,0.55366883,70112.0,70111.0,0.000806]
[1730479297120,0.43496743,70112.0,70111.0,0.000806]
[1730479298276,0.44896743,70112.0,70111.0,0.000806]
[1730479298958,0.44893991,70112.0,70111.0,0.000806]
[1730479299183,0.32248466,70112.0,70111.0,0.097506]
[1730479299409,0.32248466,70112.0,70111.0,0.173206]
[1730479299410,0.30848466,70112.0,70111.0,0.173206]
[1730479299668,0.33051793,70112.0,70111.0,0.173206]
[1730479299907,0.07985666,70112.0,70111.0,0.173206]
[1730479300106,0.06928354,70112.0,70111.0,0.173206]
[1730479300331,0.05728354,70112.0,70111.0,0.173206]
[1730479300565,0.1038974,70112.0,70111.0,0.173206]
[1730479300789,0.10390735,70112.0,70111.0,0.173206]
[1730479301005,0.04328354,70112.0,70111.0,0.173206]
[1730479301450,0.23395476,70112.0,70111.0,0.173206]
[1730479301682,0.20849336,70112.0,70111.0,0.173206]
[1730479301892,0.20449336,70112.0,70111.0,0.173206]
[1730479302346,0.18591154,70112.0,70111.0,0.173206]
[1730479302564,0.19649559,70112.0,70111.0,0.173206]
[1730479302787,0.21649559,70112.0,70111.0,0.173206]
[1730479303013,0.21649339,70112.0,70111.0,0.173206]
[1730479303230,0.30519285,70112.0,70111.0,0.173206]
[1730479303452,0.30519329,70112.0,70111.0,0.173206]
[1730479303683,0.07386583,70112.0,70111.0,0.173206]
[1730479303914,0.02204367,70118.0,70117.0,0.19264766]
[1730479304131,0.21288977,70118.0,70113.0,0.570506]
[1730479304352,0.21288977,70116.0,70111.0,0.173206]
[1730479304564,0.142607,70123.0,70115.0,0.142621]
[1730479304780,0.02204367,70121.0,70111.0,0.173206]
[1730479304998,0.142611,70121.0,70113.0,0.142626]
[1730479305241,0.012,70118.0,70111.0,0.173206]
[1730479305458,0.012,70118.0,70112.0,0.21288977]
[1730479305459,0.02204367,70117.0,70112.0,0.21288977]
[1730479305675,0.02204367,70116.0,70111.0,0.173206]
[1730479305894,0.02204367,70115.0,70111.0,0.173206]
[1730479306112,0.142626,70113.0,70111.0,0.173206]
[1730479306330,0.16467167,70112.0,70111.0,0.173206]
[1730479306547,0.02204367,70112.0,70111.0,0.173206]
[1730479307234,0.142628,70112.0,70111.0,0.173206]
[1730479307693,0.142628,70112.0,70111.0,0.000806]
[1730479307694,0.35239565,70112.0,70111.0,0.000806]
[1730479307925,0.47035635,70112.0,70111.0,0.000806]
[1730479308390,0.49435635,70112.0,70111.0,0.000806]
[1730479308618,0.49335635,70112.0,70111.0,0.000806]
[1730479308829,0.49235635,70112.0,70111.0,0.000806]
[1730479309014,0.49335635,70112.0,70111.0,0.000806]
[1730479309254,0.49835635,70112.0,70111.0,0.000806]
[1730479309665,0.40404395,70112.0,70111.0,0.000806]
[1730479310134,0.2645887,70112.0,70111.0,0.000806]
[1730479310578,0.41704395,70112.0,70111.0,0.001806]
[1730479310789,0.40304395,70112.0,70111.0,0.000806]
[1730479311008,0.39804395,70112.0,70111.0,0.000806]
[1730479311230,0.42604395,70112.0,70111.0,0.001806]
[1730479311441,0.41204395,70112.0,70111.0,0.000806]
[1730479311894,0.28250947,70112.0,70111.0,0.001806]
[1730479312105,0.29650947,70112.0,70111.0,0.001806]
[1730479312547,0.40696472,70112.0,70111.0,0.000806]
[1730479313009,0.42096466,70112.0,70111.0,0.000806]
[1730479313228,0.42096804,70112.0,70111.0,0.000806]
[1730479313921,0.54148722,70112.0,70111.0,0.000806]
[1730479314133,0.142649,70102.0,70101.0,0.00029066]
[1730479314348,0.17277789,70102.0,70101.0,0.00029066]
[1730479314560,0.18974197,70102.0,70101.0,0.01410597]
[1730479314763,0.18974197,70102.0,70101.0,0.00029066]
[1730479315620,0.64108699,70102.0,70101.0,0.00029066]
[1730479315804,0.44145774,70102.0,70101.0,0.00029066]
[1730479316052,0.44745774,70102.0,70101.0,0.00129066]
[1730479316472,0.45345774,70102.0,70101.0,0.00129066]
[1730479316681,0.45346943,70102.0,70101.0,0.00129066]
[1730479317571,0.44746943,70102.0,70101.0,0.00129066]
[1730479317814,0.31001418,70102.0,70101.0,0.00029066]
[1730479318028,0.08136518,70102.0,70101.0,0.14394166]
[1730479318262,0.05738941,70102.0,70101.0,0.35226135]
[1730479318470,0.07436518,70102.0,70101.0,0.32285697]
[1730479318717,0.08936518,70102.0,70101.0,0.32385697]
[1730479318923,0.07238941,70102.0,70101.0,0.5695731]
[1730479320013,0.07238941,70102.0,70101.0,0.32385697]
[1730479320452,0.08939918,70102.0,70101.0,0.18120597]
[1730479320704,0.21186269,70102.0,70101.0,0.18120597]
[1730479320929,0.18865877,70102.0,70101.0,0.18120597]
[1730479321145,0.23213298,70102.0,70101.0,0.16739066]
[1730479322861,0.23213298,70102.0,70101.0,0.00129066]
[1730479322862,0.42711402,70102.0,70101.0,0.00129066]
[1730479323063,0.61553804,70102.0,70101.0,0.00129066]
[1730479323289,0.5103865,70102.0,70101.0,0.00129066]
[1730479323716,0.50146507,70102.0,70101.0,0.00129066]
[1730479323944,0.50147053,70102.0,70101.0,0.00129066]
[1730479324171,0.142665,70094.0,70093.0,0.0773565]
[1730479324398,0.19435639,70094.0,70093.0,0.0773565]
[1730479324606,0.24295321,70094.0,70093.0,0.09123759]
[1730479324810,0.24295321,70094.0,70093.0,0.0773565]
[1730479326459,0.24298906,70094.0,70093.0,0.0773565]
[1730479326691,0.243001,70094.0,70093.0,0.0773565]
[1730479327147,0.100336,70094.0,70093.0,0.0773565]
[1730479327348,0.06066111,70094.0,70093.0,0.2200235]
[1730479327595,0.05373867,70094.0,70093.0,0.46573963]
[1730479327803,0.05673867,70094.0,70093.0,0.46573963]
[1730479328041,0.05473867,70094.0,70093.0,0.2200235]
[1730479328260,0.05173867,70094.0,70093.0,0.2200235]
[1730479328482,0.05173867,70094.0,70093.0,0.09123759]
[1730479328483,0.05873867,70094.0,70093.0,0.09123759]
[1730479328706,0.05873867,70094.0,70093.0,0.23390459]
[1730479328954,0.06673867,70094.0,70093.0,0.23490459]
[1730479329162,0.06673867,70094.0,70093.0,0.09223759]
[1730479330098,0.06673476,70094.0,70093.0,0.23490459]
[1730479330305,0.06673476,70094.0,70093.0,0.32527007]
[1730479330521,0.06673476,70094.0,70093.0,0.23490459]
[1730479331402,0.0889548,70094.0,70093.0,0.23490459]
[1730479331810,0.0889548,70094.0,70093.0,0.09223759]
[1730479332017,0.06673476,70094.0,70093.0,0.09223759]
[1730479332460,0.06673476,70094.0,70093.0,0.0783565]
[1730479332751,0.06673476,70094.0,70093.0,0.09223759]
[1730479332969,0.20939976,70094.0,70093.0,0.09223759]
[1730479333191,0.20939976,70094.0,70093.0,0.0783565]
[1730479333426,0.19606613,70094.0,70093.0,0.0783565]
[1730479333627,0.20940628,70094.0,70093.0,0.0783565]
[1730479333867,0.19233699,70094.0,70093.0,0.0783565]
[1730479334102,0.20940685,70094.0,70093.0,0.0783565]
[1730479334313,0.22363173,70094.0,70093.0,0.0783565]
[1730479334747,0.20940685,70094.0,70093.0,0.0783565]
[1730479335577,0.20940685,70094.0,70093.0,0.04623632]
[1730479335810,0.20940685,70094.0,70093.0,0.04705932]
[1730479336473,0.06674185,70094.0,70093.0,0.04705932]
[1730479336669,0.06674185,70094.0,70093.0,0.06094041]
[1730479337126,0.03206986,70094.0,70093.0,0.20360741]
[1730479337348,0.06678726,70094.0,70093.0,0.20360741]
[1730479337558,0.06678726,70094.0,70093.0,0.06094041]
[1730479337808,0.06678726,70094.0,70093.0,0.20360741]
[1730479338050,0.20945226,70094.0,70093.0,0.01570409]
[1730479338478,0.48514456,70094.0,70093.0,0.001823]
[1730479338728,0.6282811,70094.0,70093.0,0.001823]
[1730479338924,5.48256678,70094.0,70093.0,0.001823]
[1730479339133,1.83689197,70094.0,70093.0,0.001823]
[1730479339366,0.81121708,70094.0,70093.0,0.001823]
[1730479339576,0.81121708,70094.0,70093.0,0.000823]
[1730479339577,0.80321708,70094.0,70093.0,0.000823]
[1730479340213,0.66473978,70094.0,70093.0,0.000823]
[1730479340447,0.71987242,70094.0,70093.0,0.000823]
[1730479340682,0.71255516,70094.0,70093.0,0.000823]
[1730479340914,0.71253204,70094.0,70093.0,0.000823]
[1730479341123,0.6132641,70094.0,70093.0,0.000823]
[1730479341339,0.69854535,70094.0,70093.0,0.000823]
[1730479341555,0.6182641,70094.0,70093.0,0.000823]
[1730479341786,0.5108429,70094.0,70093.0,0.000823]
[1730479342006,0.30842914,70094.0,70093.0,0.000823]
[1730479342222,0.35106292,70094.0,70093.0,0.000823]
[1730479342454,0.47551817,70094.0,70093.0,0.000823]
[1730479342684,0.43288439,70094.0,70093.0,0.000823]
[1730479342905,0.56358277,70094.0,70093.0,0.000823]
[1730479343134,0.56380586,70094.0,70093.0,0.000823]
[1730479343348,0.58591799,70094.0,70093.0,0.000823]
[1730479343564,0.76621212,70094.0,70093.0,0.000823]
[1730479344222,0.64951374,70094.0,70093.0,0.000823]
[1730479344443,0.66351374,70094.0,70093.0,0.000823]
[1730479344658,0.48904662,70094.0,70093.0,0.000823]
[1730479344878,0.49719051,70094.0,70093.0,0.000823]
[1730479345100,0.48012298,70094.0,70093.0,0.000823]
[1730479345328,0.46985653,70094.0,70093.0,0.000823]
[1730479345548,0.62720995,70094.0,70093.0,0.000823]
[1730479345766,0.64120995,70094.0,70093.0,0.000823]
[1730479345983,0.74839475,70094.0,70093.0,0.000823]
[1730479346422,0.64120995,70094.0,70093.0,0.000823]
[1730479346633,0.4797547,70094.0,70093.0,0.000823]
[1730479347057,0.25041895,70094.0,70093.0,0.171223]
[1730479347273,0.09305731,70094.0,70093.0,0.18183355]
[1730479347493,0.09305731,70094.0,70093.0,0.32450055]
[1730479347494,0.11527166,70094.0,70093.0,0.32450055]
[1730479347726,0.08491917,70094.0,70093.0,0.32450055]
[1730479348001,0.07091917,70094.0,70093.0,0.32450055]
[1730479348222,0.014,70094.0,70093.0,0.3259888]
[1730479348440,0.12788087,70105.0,70104.0,0.142645]
[1730479348652,0.12788087,70105.0,70104.0,0.34355221]
[1730479349300,0.12788087,70105.0,70104.0,0.48200746]
[1730479349967,0.12788087,70105.0,70104.0,0.48600746]
[1730479350175,0.12788087,70105.0,70104.0,0.34355221]
[1730479350398,0.142624,70115.0,70104.0,0.20090721]
[1730479350611,0.001646,70117.0,70105.0,0.21845829]
[1730479350815,0.001646,70117.0,70105.0,0.21560587]
[1730479351017,0.001646,70117.0,70106.0,0.01053038]
[1730479351249,0.001646,70117.0,70106.0,0.14898563]
[1730479351925,0.001646,70117.0,70107.0,0.38702361]
[1730479352158,0.21453577,70117.0,70108.0,0.23898589]
[1730479352366,0.21453577,70117.0,70109.0,0.13845525]
[1730479352793,0.001646,70117.0,70110.0,0.0950521]
[1730479353027,0.21288977,70128.0,70117.0,0.1722]
[1730479353263,0.21288977,70118.0,70117.0,0.1722]
[1730479353486,0.21288977,70128.0,70117.0,0.18942]
[1730479354342,0.21288977,70128.0,70118.0,0.13845525]
[1730479354550,0.285175,70133.0,70118.0,0.13845525]
[1730479354763,0.1,70137.0,70119.0,0.01045023]
[1730479354764,0.1,70132.0,70119.0,0.01045023]
[1730479354978,0.1,70130.0,70119.0,0.01045023]
[1730479355201,0.1,70130.0,70120.0,0.03473255]
[1730479355202,0.242593,70130.0,70120.0,0.03473255]
[1730479355421,0.1,70130.0,70120.0,0.03473255]
[1730479355913,0.285168,70134.0,70120.0,0.03473255]
[1730479355914,0.1,70133.0,70120.0,0.03473255]
[1730479356133,0.242587,70133.0,70120.0,0.03473255]
[1730479356579,0.142589,70132.0,70120.0,0.03973255]
[1730479356799,0.1,70131.0,70121.0,0.05999478]
[1730479356981,0.001,70130.0,70121.0,0.05999478]
[1730479357650,0.1,70131.0,70121.0,0.05999478]
[1730479357860,0.1,70134.0,70121.0,0.05999478]
[1730479358078,0.242589,70132.0,70121.0,0.05999478]
[1730479358301,0.02123652,70131.0,70122.0,0.03861003]
[1730479358520,0.02123652,70131.0,70122.0,0.0474412]
[1730479359148,0.1,70132.0,70122.0,0.0474412]
[1730479359149,0.02123652,70132.0,70122.0,0.0474412]
[1730479359360,0.02123652,70134.0,70123.0,0.00285173]
[1730479359592,0.02123652,70135.0,70123.0,0.00285173]
[1730479359807,0.02123652,70135.0,70124.0,0.00882131]
[1730479360019,0.02123652,70135.0,70125.0,0.21574138]
[1730479360227,0.285146,70140.0,70128.0,0.24571613]
[1730479360228,0.1,70136.0,70128.0,0.24571613]
[1730479360448,0.01326314,70135.0,70126.0,0.18481145]
[1730479360688,0.1,70136.0,70129.0,0.00879666]
[1730479360689,0.01490714,70134.0,70129.0,0.00879666]
[1730479360916,0.01490714,70134.0,70126.0,0.176]
[1730479360917,0.01326314,70133.0,70126.0,0.176]
[1730479361135,0.01326314,70132.0,70130.0,0.00879173]
[1730479361400,0.001644,70134.0,70126.0,0.176]
[1730479361620,0.01325272,70133.0,70131.0,0.0087868]
[1730479361838,0.001644,70134.0,70126.0,0.176]
[1730479362042,0.01325257,70133.0,70132.0,0.00878187]
[1730479362266,0.01325257,70133.0,70126.0,0.19163857]
[1730479362502,0.142586,70133.0,70132.0,0.00878187]
[1730479362710,0.289815,70134.0,70126.0,0.176]
[1730479362711,0.15583667,70132.0,70126.0,0.176]
[1730479362923,0.142588,70132.0,70126.0,0.176]
[1730479363133,0.289815,70134.0,70126.0,0.176]
[1730479363134,0.15583867,70131.0,70126.0,0.176]
[1730479363316,0.289815,70134.0,70126.0,0.176]
[1730479363317,0.01324867,70130.0,70126.0,0.176]
[1730479363663,0.1,70128.0,70107.0,0.093122]
[1730479363879,0.142637,70108.0,70107.0,0.000822]
[1730479364098,0.43853564,70108.0,70107.0,0.000822]
[1730479364343,0.47766848,70108.0,70107.0,0.000822]
[1730479365538,0.50482899,70108.0,70107.0,0.002822]
[1730479365745,0.49882899,70108.0,70107.0,0.001822]
[1730479366167,0.50482899,70108.0,70107.0,0.002822]
[1730479366355,0.43734672,70108.0,70107.0,0.002822]
[1730479366624,0.47386549,70108.0,70107.0,0.001822]
[1730479366854,0.4836967,70108.0,70107.0,0.001822]
[1730479367080,0.5048344,70108.0,70107.0,0.002822]
[1730479367507,0.4818344,70108.0,70107.0,0.002822]
[1730479367711,0.4746967,70108.0,70107.0,0.002822]
[1730479368145,0.10677066,70108.0,70107.0,0.002822]
[1730479368373,0.05446212,70108.0,70107.0,0.002822]
[1730479368588,0.03325466,70108.0,70107.0,0.002822]
[1730479368814,0.03325466,70108.0,70107.0,0.0957942]
[1730479369271,0.03325466,70108.0,70107.0,0.10922963]
[1730479369718,0.01925466,70108.0,70107.0,0.10822963]
[1730479369927,0.02725749,70108.0,70107.0,0.10822963]
[1730479370356,0.02725749,70108.0,70107.0,0.23976502]
[1730479370566,0.02121198,70119.0,70107.0,0.23876502]
[1730479370777,0.21288977,70115.0,70108.0,0.13845525]
[1730479371013,0.03447288,70114.0,70108.0,0.13845525]
[1730479371226,0.0132609,70113.0,70107.0,0.09745743]
[1730479371438,0.011,70108.0,70107.0,0.09845743]
[1730479371662,0.1668979,70108.0,70107.0,0.001822]
[1730479371889,0.18310988,70108.0,70107.0,0.001822]
[1730479372996,0.03447288,70108.0,70107.0,0.0104942]
[1730479374148,0.03647288,70108.0,70107.0,0.0104942]
[1730479374610,0.03947288,70108.0,70107.0,0.000822]
[1730479374793,0.03447288,70108.0,70107.0,0.000822]
[1730479375245,0.03647288,70108.0,70107.0,0.000822]
[1730479375473,0.03447288,70108.0,70107.0,0.000822]
[1730479375927,0.04710306,70108.0,70107.0,0.000822]
[1730479376148,0.03447288,70108.0,70107.0,0.000822]
[1730479376366,0.03847288,70108.0,70107.0,0.000822]
[1730479376593,0.03847288,70108.0,70107.0,0.0103942]
[1730479376824,0.056029,70108.0,70107.0,0.0103942]
[1730479377053,0.04539267,70108.0,70107.0,0.0103942]
[1730479377283,0.05802909,70108.0,70107.0,0.0103942]
[1730479377510,0.01463642,70108.0,70107.0,0.0103942]
[1730479377719,0.04521005,70108.0,70107.0,0.0103942]
[1730479378145,0.04921005,70108.0,70107.0,0.0103942]
[1730479378353,0.04721005,70108.0,70107.0,0.0103942]
[1730479378610,0.0561299,70108.0,70107.0,0.0103942]
[1730479378819,0.0581299,70108.0,70107.0,0.0103942]
[1730479379036,0.04921005,70108.0,70107.0,0.0103942]
[1730479379474,0.18784705,70108.0,70107.0,0.0103942]
[1730479379693,0.19084705,70108.0,70107.0,0.0103942]
[1730479379908,0.19084705,70108.0,70107.0,0.000822]
[1730479380137,0.1967669,70108.0,70107.0,0.000822]
[1730479380350,0.21006766,70108.0,70107.0,0.000822]
[1730479380555,0.21506766,70108.0,70107.0,0.001822]
[1730479380786,0.16093776,70108.0,70107.0,0.001822]
[1730479381002,0.20443921,70108.0,70107.0,0.001822]
[1730479381210,0.21507941,70108.0,70107.0,0.001822]
[1730479381449,0.19260176,70108.0,70107.0,0.001822]
[1730479381679,0.21507495,70108.0,70107.0,0.001822]
[1730479381904,0.23709928,70108.0,70107.0,0.001822]
[1730479382351,0.25926524,70108.0,70107.0,0.001822]
[1730479382561,0.23709928,70108.0,70107.0,0.001822]
[1730479383255,0.23709928,70108.0,70095.0,0.0893122]
[1730479383256,0.39547036,70108.0,70095.0,0.0893122]
[1730479383471,0.48837713,70096.0,70095.0,0.0893122]
[1730479383658,0.48837713,70096.0,70086.0,0.21369577]
[1730479383659,0.142665,70094.0,70086.0,0.21369577]
[1730479383923,0.22713141,70094.0,70086.0,0.21369577]
[1730479384155,0.10663694,70094.0,70087.0,0.0028534]
[1730479384361,0.10663694,70094.0,70086.0,0.21369577]
[1730479384362,0.04521854,70094.0,70086.0,0.21369577]
[1730479384607,0.03457675,70094.0,70087.0,0.00285306]
[1730479384829,0.03457675,70094.0,70093.0,0.31207825]
[1730479385044,0.01329875,70094.0,70093.0,0.34328608]
[1730479385503,0.01829875,70094.0,70093.0,0.34428608]
[1730479385723,0.01329875,70094.0,70093.0,0.34328608]
[1730479385913,0.01329875,70094.0,70093.0,0.20483083]
[1730479385914,0.15796375,70094.0,70093.0,0.20483083]
[1730479386228,0.02929875,70094.0,70093.0,0.20483083]
[1730479386455,0.02127999,70099.0,70093.0,0.34328608]
[1730479386672,0.21453377,70117.0,70093.0,0.34328608]
[1730479386673,0.02217053,70115.0,70094.0,0.17278386]
[1730479386911,0.21453377,70117.0,70098.0,0.0766]
[1730479387132,0.02127714,70108.0,70099.0,0.13845525]
[1730479387375,0.02127941,70107.0,70099.0,0.13845525]
[1730479387598,0.02127654,70108.0,70099.0,0.13845525]
[1730479387808,0.02127654,70108.0,70100.0,0.07392372]
[1730479388019,0.02127654,70108.0,70098.0,0.0766]
[1730479388020,0.02127654,70108.0,70101.0,0.13845525]
[1730479388460,0.02227654,70108.0,70101.0,0.13845525]
[1730479388720,0.02128421,70107.0,70101.0,0.13845525]
[1730479388926,0.02128421,70106.0,70101.0,0.13845525]
[1730479389145,0.02127654,70108.0,70100.0,0.01]
[1730479389146,0.28529,70104.0,70100.0,0.01]
[1730479389383,0.16393221,70103.0,70100.0,0.15673525]
[1730479389586,0.02128421,70102.0,70101.0,0.008]
[1730479389807,0.16393321,70102.0,70101.0,0.008]
[1730479390048,0.02128421,70102.0,70101.0,0.008]
[1730479390269,0.16393321,70102.0,70098.0,0.0766]
[1730479390504,0.02128421,70101.0,70099.0,0.15573525]
[1730479390730,0.02130112,70101.0,70099.0,0.15573525]
[1730479390954,0.23419089,70100.0,70098.0,0.0766]
[1730479391187,0.23419089,70100.0,70095.0,0.0962]
[1730479391188,0.142661,70096.0,70095.0,0.0962]
[1730479391420,0.142665,70094.0,70086.0,0.000806]
[1730479391647,0.19685233,70094.0,70086.0,0.000806]
[1730479392341,0.23609301,70094.0,70086.0,0.000806]
[1730479392802,0.21390434,70094.0,70086.0,0.000806]
[1730479393009,0.21490434,70094.0,70086.0,0.000806]
[1730479394133,0.22690434,70094.0,70093.0,0.001823]
[1730479394368,0.59793062,70094.0,70093.0,0.001823]
[1730479394589,0.60093062,70094.0,70093.0,0.001823]
[1730479394805,0.46735959,70094.0,70093.0,0.001823]
[1730479395208,0.45535959,70094.0,70093.0,0.000823]
[1730479395680,0.46335959,70094.0,70093.0,0.001823]
[1730479395946,0.47049737,70094.0,70093.0,0.001823]
[1730479396161,0.51959755,70094.0,70093.0,0.000823]
[1730479396380,0.38112025,70094.0,70093.0,0.001823]
[1730479396808,0.38112025,70094.0,70093.0,0.000823]
[1730479397038,0.39445439,70094.0,70093.0,0.000823]
[1730479397300,0.39445439,70094.0,70093.0,0.001823]
[1730479397301,0.42932819,70094.0,70093.0,0.001823]
[1730479397513,0.45958498,70094.0,70093.0,0.001823]
[1730479397745,0.46958498,70094.0,70093.0,0.002823]
[1730479398614,0.142679,70087.0,70086.0,0.000806]
[1730479398817,0.45971618,70087.0,70086.0,0.000806]
[1730479399052,0.56685483,70087.0,70086.0,0.000806]
[1730479399670,0.70531008,70087.0,70086.0,0.000806]
[1730479400539,0.84378738,70087.0,70086.0,0.000806]
[1730479400756,0.84372786,70087.0,70086.0,0.000806]
[1730479401183,0.84772786,70087.0,70086.0,0.000806]
[1730479401804,0.86672786,70087.0,70086.0,0.000806]
[1730479401808,1.12144399,70087.0,70086.0,0.000806]
[1730479402061,1.12144399,70087.0,70069.0,0.23157887]
[1730479402062,0.48842013,70075.0,70069.0,0.23157887]
[1730479402274,0.69813552,70075.0,70069.0,0.23157887]
[1730479402527,0.9208096,70075.0,70069.0,0.0186891]
[1730479402986,0.242714,70070.0,70069.0,0.0186891]
[1730479403224,0.123,70069.0,70058.0,0.21288977]
[1730479403450,0.242736,70059.0,70058.0,0.21288977]
[1730479403675,0.242736,70059.0,70057.0,0.0001]
[1730479403676,0.1,70058.0,70057.0,0.0001]
[1730479403902,0.32728816,70058.0,70057.0,0.0001]
[1730479404153,0.33583956,70058.0,70057.0,0.0001]
[1730479404386,0.37308258,70058.0,70057.0,0.0001]
[1730479404616,0.36594031,70058.0,70057.0,0.0001]
[1730479404841,0.32715271,70058.0,70057.0,0.0001]
[1730479405293,0.34115271,70058.0,70057.0,0.0001]
[1730479405767,0.75546671,70058.0,70057.0,0.0001]
[1730479406002,0.75546671,70058.0,70057.0,0.0011]
[1730479406003,0.52175058,70058.0,70057.0,0.0011]
[1730479406231,0.66022788,70058.0,70057.0,0.0011]
[1730479406467,0.38848313,70044.0,70043.0,0.21288977]
[1730479406684,0.57289784,70044.0,70043.0,0.21288977]
[1730479406907,0.57289784,70044.0,70040.0,0.000807]
[1730479406908,0.242773,70041.0,70040.0,0.000807]
[1730479407135,0.31017658,70041.0,70040.0,0.000807]
[1730479407385,0.33567424,70041.0,70040.0,0.000807]
[1730479407825,0.43534189,70041.0,70040.0,0.000807]
[1730479408113,0.75723226,70028.0,70027.0,0.000807]
[1730479408350,0.75723226,70028.0,70016.0,0.21288977]
[1730479408351,0.242822,70017.0,70016.0,0.21288977]
[1730479408566,0.68741731,70017.0,70016.0,0.21288977]
[1730479408818,0.21383483,70017.0,70016.0,0.0797]
[1730479409063,0.21383483,70017.0,70016.0,0.1869507]
[1730479409064,0.03455385,70017.0,70016.0,0.1869507]
[1730479409502,0.17737585,70017.0,70016.0,0.1789]
[1730479409506,0.18630369,70017.0,70016.0,0.1789]
[1730479409750,0.18630369,70017.0,70015.0,0.000807]
[1730479409751,0.142824,70016.0,70015.0,0.000807]
[1730479410000,0.28630569,70016.0,70015.0,0.000807]
[1730479410246,0.42689096,70016.0,70015.0,0.000807]
[1730479410489,0.42689096,70016.0,70002.0,9e-05]
[1730479410490,0.242851,70003.0,70002.0,9e-05]
[1730479410727,0.43536636,70003.0,70002.0,9e-05]
[1730479410954,0.73420509,70003.0,70002.0,9e-05]
[1730479411178,0.73225535,70003.0,70002.0,9e-05]
[1730479411414,0.123,70001.0,69984.0,0.0992]
[1730479411640,0.242859,69999.0,69973.0,0.0797]
[1730479411871,0.29671712,69999.0,69973.0,0.0797]
[1730479412102,0.31971712,69999.0,69973.0,0.0797]
[1730479412564,0.33658315,69999.0,69973.0,0.0797]
[1730479413014,0.35511432,69999.0,69991.0,0.21288977]
[1730479413255,0.35511432,69999.0,69974.0,0.24571613]
[1730479413256,0.28614715,69999.0,69995.0,0.0992]
[1730479413476,0.04328815,69999.0,69998.0,0.0983891]
[1730479413703,0.21288977,70017.0,69998.0,0.0983891]
[1730479413704,0.02193616,70005.0,70004.0,0.142848]
[1730479413933,0.19095361,70014.0,70007.0,0.285681]
[1730479414157,0.21288977,70028.0,70008.0,0.00285605]
[1730479414391,0.21288977,70020.0,70005.0,0.1789]
[1730479414627,0.21288977,70028.0,70005.0,0.1789]
[1730479414628,0.21288977,70028.0,70008.0,0.21288977]
[1730479414855,0.285638,70019.0,70009.0,0.13845525]
[1730479415081,0.143828,70014.0,70010.0,0.21288977]
[1730479415312,0.285661,70013.0,70011.0,0.13845525]
[1730479415531,0.142827,70015.0,70010.0,0.13845525]
[1730479415757,0.14283,70014.0,70010.0,0.13845525]
[1730479415986,0.001,70020.0,70011.0,0.35134502]
[1730479416221,0.21288977,70018.0,70011.0,0.13845525]
[1730479416464,0.285636,70019.0,70011.0,0.13845525]
[1730479416685,0.1,70018.0,70011.0,0.13845525]
[1730479416906,0.001,70015.0,70011.0,0.13845525]
[1730479417173,0.001,70015.0,70012.0,0.01404553]
[1730479417385,0.001,70014.0,70013.0,0.13845525]
[1730479417605,0.001,70015.0,70013.0,0.13845525]
[1730479417828,0.1,70021.0,70013.0,0.13845525]
[1730479418030,0.001,70018.0,70013.0,0.13845525]
[1730479418244,0.001,70018.0,70014.0,0.01414553]
[1730479418454,0.001,70018.0,70015.0,0.13845525]
[1730479418666,0.1,70021.0,70015.0,0.13845525]
[1730479418865,0.02195898,70016.0,70015.0,0.13845525]
[1730479419163,0.02195898,70017.0,70015.0,0.13845525]
[1730479419405,0.1,70021.0,70005.0,0.1789]
[1730479419610,0.285661,70013.0,70006.0,0.13845525]
[1730479419804,0.142832,70012.0,70011.0,0.002]
[1730479420017,0.242832,70012.0,70011.0,0.002]
[1730479420228,0.2665787,70012.0,70011.0,0.002]
[1730479420441,0.142844,70006.0,70005.0,0.0992]
[1730479420659,0.142844,70006.0,70005.0,0.1012]
[1730479420919,0.15340151,70006.0,70005.0,0.1032]
[1730479421139,0.15340151,70006.0,70005.0,0.0992]
[1730479421561,0.15340847,70006.0,70005.0,0.0992]
[1730479421769,0.15340847,70006.0,70000.0,0.21371377]
[1730479421770,0.142855,70001.0,70000.0,0.000824]
[1730479421980,0.15178794,70001.0,70000.0,0.000824]
[1730479422412,0.17557158,70001.0,70000.0,0.000824]
[1730479422883,0.242859,69999.0,69993.0,0.099]
[1730479423098,0.242859,69999.0,69985.0,0.0753]
[1730479423099,0.54662082,69999.0,69985.0,0.0753]
[1730479423335,0.55376876,69999.0,69983.0,0.21288977]
[1730479423587,0.142883,69987.0,69983.0,0.21288977]
[1730479423811,0.19675178,69987.0,69983.0,0.21288977]
[1730479424039,0.19675178,69987.0,69984.0,0.0028576]